bitfinex/quotes_SOLUSD_20250806
["timestamp","ask_amount","ask_price","bid_price","bid_amount"]
[1754455084668,23.65403387,162.08,162.07,0.06]
[1754455084867,82.97423512,162.08,162.07,0.06]
[1754455085688,98.39871685,162.08,162.02,0.2]
[1754455085895,23.65403387,162.03,162.02,0.2]
[1754455086099,71.00886663,162.03,162.02,0.2]
[1754455086821,77.18056322,162.03,162.02,0.2]
[1754455088374,77.86056322,162.03,162.02,0.2]
[1754455088595,82.76234489,162.03,162.02,0.2]
[1754455092272,82.08234489,162.03,162.02,0.2]
[1754455092669,82.76234489,162.03,162.02,0.2]
[1754455093585,82.08234489,162.03,162.02,0.2]
[1754455095115,82.76234489,162.03,162.02,0.2]
[1754455096408,79.63328622,162.03,162.02,0.87]
[1754455096913,79.63328622,162.03,162.02,0.2]
[1754455097101,79.63328622,162.03,162.02,0.87]
[1754455097503,84.56969399,162.03,162.02,0.87]
[1754455097700,84.56969399,162.03,162.02,0.2]
[1754455098530,79.63328622,162.03,162.02,0.87]
[1754455099208,79.63328622,162.03,162.02,0.2]
[1754455100106,85.46886202,162.03,162.02,0.2]
[1754455100350,85.46886202,162.03,162.02,1e-08]
[1754455100491,26.0,161.98,161.96,0.87]
[1754455100843,51.7278183,161.97,161.96,0.87]
[1754455101129,55.84119631,161.97,161.96,0.2]
[1754455101693,55.84119631,161.97,161.96,0.87]
[1754455102197,62.01517914,161.97,161.96,0.87]
[1754455103203,55.84119631,161.97,161.96,0.87]
[1754455103424,47.29337801,161.97,161.96,0.87]
[1754455104713,47.27337801,161.97,161.96,0.87]
[1754455105135,47.27930185,161.97,161.96,0.87]
[1754455105441,4.11930185,161.97,161.96,15.59218234]
[1754455105629,43.16,161.99,161.96,15.59218234]
[1754455105949,43.18,162.0,161.98,8.5478183]
[1754455106113,4.11979389,161.99,161.96,6.37436404]
[1754455106302,4.11979389,161.99,161.98,8.5478183]
[1754455106729,4.11979389,161.99,161.98,9.2178183]
[1754455107117,4.11979389,161.99,161.98,0.67]
[1754455108712,4.12415844,161.99,161.98,0.67]
[1754455111414,10.297379,161.99,161.98,0.67]
[1754455111935,10.297379,161.99,161.96,0.87]
[1754455112116,47.28415844,161.98,161.97,0.67]
[1754455119219,47.28415844,161.98,161.96,0.2]
[1754455119220,53.45782455,161.98,161.96,0.2]
[1754455119420,4.12415844,161.97,161.96,0.86]
[1754455120840,4.12415844,161.97,161.96,9.4078183]
[1754455121044,3.40415844,161.97,161.96,104.68218234]
[1754455121233,43.14,162.01,161.96,104.68218234]
[1754455121436,6.17213304,162.02,161.98,8.5478183]
[1754455121641,43.14,162.01,161.98,8.5478183]
[1754455121841,43.14,162.01,161.98,9.2078183]
[1754455122328,43.14,162.01,161.99,0.66]
[1754455123562,43.14,162.01,161.98,8.5478183]
[1754455123859,43.14,162.01,161.99,9.2078183]
[1754455124027,43.14,162.01,162.0,9.2078183]
[1754455124850,43.14,162.01,162.0,0.66]
[1754455125147,5.18519805,162.04,162.0,9.2078183]
[1754455125374,43.12,162.03,162.01,9.2078183]
[1754455125569,0.03,162.04,162.02,9.2078183]
[1754455125771,0.03,162.04,162.03,8.5478183]
[1754455126061,0.03,162.04,162.03,9.2078183]
[1754455127046,0.03,162.04,162.03,15.37951489]
[1754455127874,0.03,162.04,162.03,58.51951489]
[1754455137279,0.03,162.04,162.03,147.61951489]
[1754455140379,0.03,162.09,162.03,163.04875638]
[1754455140576,0.03,162.09,162.08,8.5478183]
[1754455140873,0.03,162.09,162.08,51.6678183]
[1754455141073,0.03,162.12,162.08,60.8756366]
[1754455141377,0.03,162.12,162.11,14.71646921]
[1754455141585,0.03,162.12,162.11,57.83646921]
[1754455141788,0.03,162.12,162.11,58.49646921]
[1754455142457,0.03,162.13,162.11,58.49646921]
[1754455142695,0.03,162.13,162.12,9.2078183]
[1754455143567,0.03,162.13,162.12,15.37608871]
[1754455145194,0.03,162.13,162.12,15.43608871]
[1754455147286,0.03,162.13,162.12,14.77608871]
[1754455147483,0.03,162.13,162.12,15.48608871]
[1754455148572,0.03,162.13,162.12,14.77608871]
[1754455149270,0.03,162.13,162.12,15.48608871]
[1754455151189,0.03,162.13,162.12,14.77608871]
[1754455155323,0.03,162.13,162.12,15.48608871]
[1754455156477,0.03,162.13,162.12,14.77608871]
[1754455157419,0.75,162.13,162.12,14.77608871]
[1754455157977,0.03,162.13,162.12,103.87608871]
[1754455159287,0.75,162.13,162.12,103.87608871]
[1754455159621,0.03,162.13,162.12,103.87608871]
[1754455160928,0.03,162.13,162.12,104.58608871]
[1754455161299,0.03,162.13,162.12,103.87608871]
[1754455161486,0.75,162.13,162.12,146.95608871]
[1754455161694,0.75,162.13,162.12,0.06]
[1754455161899,0.75,162.13,162.12,8.6078183]
[1754455162713,0.75,162.13,162.12,14.77608871]
[1754455163498,0.03,162.13,162.12,14.77608871]
[1754455163693,0.03,162.13,162.12,15.48608871]
[1754455164042,0.03,162.13,162.12,58.54608871]
[1754455165531,0.03,162.13,162.12,147.64608871]
[1754455168502,0.03,162.15,162.13,15.10621557]
[1754455168737,0.03,162.15,162.14,57.79532785]
[1754455169037,0.03,162.15,162.14,58.50532785]
[1754455170627,0.75,162.15,162.13,95.26778842]
[1754455170829,4.87737826,162.15,162.13,89.1]
[1754455171028,0.03,162.15,162.12,0.06]
[1754455171244,4.84894531,162.14,162.12,0.06]
[1754455171447,4.12894531,162.14,162.12,6.22825365]
[1754455171644,0.72,162.13,162.12,14.77607195]
[1754455172552,0.72,162.14,162.12,14.77607195]
[1754455172728,0.03,162.15,162.13,8.5478183]
[1754455173124,4.13085227,162.14,162.13,8.5478183]
[1754455173325,4.85085227,162.14,162.12,14.77607195]
[1754455173659,0.03,162.15,162.13,8.5478183]
[1754455173820,0.66,162.14,162.13,8.5478183]
[1754455175019,0.03,162.15,162.13,14.71570826]
[1754455175252,0.03,162.15,162.14,8.5478183]
[1754455175750,0.03,162.15,162.14,97.6478183]
[1754455176857,0.03,162.15,162.14,103.81532785]
[1754455177921,0.03,162.15,162.14,104.51532785]
[1754455179150,0.03,162.17,162.16,26.0]
[1754455179330,0.03,162.17,162.16,77.6278183]
[1754455179523,0.03,162.17,162.16,78.3278183]
[1754455179829,0.03,162.17,162.16,69.08]
[1754455180030,0.69,162.17,162.16,8.5478183]
[1754455181437,0.69,162.17,162.16,14.71456718]
[1754455182448,4.83432726,162.17,162.15,14.71486861]
[1754455182652,4.14432726,162.16,162.15,14.71486861]
[1754455182967,4.80432726,162.16,162.15,14.71486861]
[1754455183333,0.03,162.17,162.15,14.71486861]
[1754455183528,0.03,162.17,162.16,8.5478183]
[1754455183742,4.83707574,162.17,162.16,8.5478183]
[1754455184845,4.83707574,162.17,162.15,8.5478183]
[1754455185044,4.80707574,162.16,162.15,8.5478183]
[1754455185842,4.14707574,162.16,162.15,14.7149475]
[1754455186863,4.80707574,162.16,162.15,8.5478183]
[1754455189162,4.80707574,162.16,162.14,89.1]
[1754455189368,4.80707574,162.15,162.14,89.1]
[1754455190548,4.80707574,162.15,162.12,14.77597486]
[1754455190749,4.80707574,162.14,162.12,0.06]
[1754455190947,4.14707574,162.13,162.12,0.06]
[1754455191350,4.80707574,162.13,162.12,0.06]
[1754455192765,4.14707574,162.13,162.12,9.3078183]
[1754455193168,4.14707574,162.13,162.12,8.6078183]
[1754455194572,4.14707574,162.13,162.12,0.06]
[1754455194873,4.14707574,162.13,162.12,14.77608871]
[1754455199481,0.66,162.15,162.12,14.77608871]
[1754455199651,4.15107236,162.14,162.12,14.77608871]
[1754455199854,0.66,162.15,162.12,14.77608871]
[1754455200179,4.15107381,162.14,162.12,14.77608871]
[1754455200346,0.66,162.15,162.12,14.77608871]
[1754455200672,4.81079494,162.14,162.12,14.77608871]
[1754455200878,4.81079494,162.13,162.12,0.06]
[1754455202062,4.15079494,162.13,162.12,8.6078183]
[1754455202375,4.15079494,162.13,162.12,9.3078183]
[1754455203662,4.15079494,162.13,162.12,15.47608871]
[1754455204077,4.15079494,162.13,162.12,58.51608871]
[1754455204262,4.15079494,162.13,162.12,57.81608871]
[1754455204467,4.85079494,162.13,162.12,0.06]
[1754455205855,13.39861324,162.13,162.12,0.06]
[1754455206691,4.85079494,162.13,162.12,0.06]
[1754455208099,19.5665032,162.13,162.12,0.06]
[1754455208281,13.39861324,162.13,162.12,0.06]
[1754455211381,19.5665032,162.13,162.12,0.06]
[1754455214604,62.6065032,162.13,162.12,0.06]
[1754455214973,47.89079494,162.13,162.12,0.06]
[1754455215386,62.6065032,162.13,162.12,0.06]
[1754455216971,56.43861324,162.13,162.12,0.06]
[1754455217391,47.19079494,162.13,162.12,0.06]
[1754455219475,47.19079494,162.13,162.12,0.77]
[1754455219883,4.15079494,162.13,162.12,0.77]
[1754455220306,4.15079494,162.14,162.12,0.77]
[1754455220534,4.85079494,162.13,162.12,0.06]
[1754455220689,13.39861324,162.13,162.12,0.06]
[1754455221303,4.85079494,162.13,162.12,0.06]
[1754455221502,4.15079494,162.13,162.12,0.06]
[1754455227492,4.85079494,162.13,162.12,0.06]
[1754455228811,4.15079494,162.13,162.12,0.06]
[1754455229001,4.15079494,162.13,162.12,9.3178183]
[1754455230740,4.15079494,162.13,162.12,15.48608871]
[1754455231050,0.03,162.15,162.12,104.58608871]
[1754455231249,0.03,162.15,162.14,8.5478183]
[1754455231412,4.18168403,162.15,162.14,8.5478183]
[1754455231618,4.18168403,162.15,162.14,9.2578183]
[1754455232229,4.18168403,162.15,162.14,15.42532785]
[1754455233111,4.18168403,162.15,162.14,14.71532785]
[1754455236613,4.18168403,162.15,162.14,15.38532785]
[1754455238312,0.03,162.15,162.14,15.38532785]
[1754455243649,0.03,162.15,162.14,104.48532785]
[1754455244842,0.03,162.15,162.14,147.50532785]
[1754455251861,0.73,162.15,162.14,146.83532785]
[1754455253336,0.03,162.15,162.14,147.50532785]
[1754455253760,0.03,162.15,162.14,146.83532785]
[1754455255141,0.03,162.15,162.14,147.50532785]
[1754455257039,0.03,162.17,162.14,119.90410174]
[1754455257240,0.03,162.17,162.16,8.5478183]
[1754455257448,0.03,162.17,162.16,97.6478183]
[1754455257973,0.03,162.17,162.16,98.3178183]
[1754455259346,0.03,162.17,162.16,104.48456718]
[1754455261361,0.03,162.17,162.16,130.48456718]
[1754455261545,0.03,162.19,162.18,26.0]
[1754455261752,1e-08,162.19,162.18,181.77403387]
[1754455261963,1e-08,162.19,162.18,182.44403387]
[1754455263062,0.70000001,162.19,162.18,121.2659884]
[1754455263255,0.70000001,162.19,162.18,172.8338067]
[1754455265273,1e-08,162.19,162.18,129.8138067]
[1754455265447,1e-08,162.19,162.18,172.8338067]
[1754455271592,0.68000001,162.19,162.18,132.12]
[1754455271876,0.68000001,162.19,162.18,89.1]
[1754455273447,1e-08,162.19,162.18,104.5038067]
[1754455273654,1e-08,162.19,162.18,120.22662111]
[1754455273971,0.03,162.24,162.19,15.10621557]
[1754455274179,0.03,162.24,162.23,8.5478183]
[1754455274470,0.03,162.24,162.23,51.5478183]
[1754455274651,0.03,162.24,162.23,52.2378183]
[1754455275782,0.03,162.26,162.25,26.0]
[1754455275982,0.1,162.3,162.29,26.0]
[1754455276165,0.1,162.3,162.29,77.5478183]
[1754455276493,0.1,162.3,162.29,78.2378183]
[1754455277376,0.1,162.3,162.29,84.3996274]
[1754455283383,0.1,162.32,162.29,84.3996274]
[1754455283384,0.1,162.32,162.29,85.01580831]
[1754455283699,0.1,162.32,162.3,8.5478183]
[1754455284185,0.78,162.32,162.3,8.5478183]
[1754455284771,0.1,162.32,162.29,75.8518091]
[1754455284960,0.1,162.32,162.3,8.5478183]
[1754455285621,0.1,162.32,162.3,15.39924775]
[1754455285976,0.1,162.32,162.3,17.86571875]
[1754455287462,0.1,162.32,162.3,115.51353705]
[1754455287995,0.1,162.32,162.3,116.12967999]
[1754455290081,0.1,162.32,162.3,131.23589556]
[1754455290286,0.1,162.32,162.3,130.61975262]
[1754455291175,0.1,162.32,162.31,123.6178183]
[1754455291375,0.1,162.32,162.31,166.5978183]
[1754455291676,0.1,162.32,162.31,167.2878183]
[1754455292690,0.1,162.32,162.31,173.44886814]
[1754455293573,0.1,162.32,162.31,175.91518714]
[1754455298013,0.1,162.32,162.31,175.22518714]
[1754455299501,0.1,162.32,162.31,175.93518714]
[1754455304227,0.1,162.32,162.31,175.22518714]
[1754455306422,0.1,162.32,162.31,173.46886814]
[1754455307320,0.1,162.32,162.31,188.57508371]
[1754455307723,1e-08,162.32,162.31,162.57508371]
[1754455308294,1e-08,162.34,162.32,104.17621557]
[1754455308498,0.1,162.36,162.35,41.10621557]
[1754455308732,1e-08,162.37,162.36,15.10621557]
[1754455308895,0.69,162.42,162.38,26.0]
[1754455309097,0.69,162.42,162.38,78.12365768]
[1754455309098,0.69,162.41,162.38,78.12365768]
[1754455309408,0.69,162.41,162.38,173.44621219]
[1754455310313,0.03,162.41,162.38,173.44621219]
[1754455311418,0.69,162.41,162.38,164.18839389]
[1754455311630,0.76,162.39,162.38,121.22839389]
[1754455311802,9.3078183,162.39,162.38,89.07]
[1754455312002,9.3078183,162.39,162.38,132.03]
[1754455312198,0.76,162.39,162.38,89.07]
[1754455312504,9.3078183,162.39,162.37,42.96]
[1754455312708,9.2078183,162.38,162.34,6.15982949]
[1754455312930,9.2078183,162.37,162.34,49.09982949]
[1754455313125,0.66,162.36,162.34,49.09982949]
[1754455315235,0.66,162.35,162.34,49.09982949]
[1754455315611,8.6478183,162.39,162.34,57.64764779]
[1754455315934,0.66,162.37,162.35,8.5478183]
[1754455316240,0.66,162.37,162.36,43.0]
[1754455317231,9.2078183,162.37,162.35,6.15944081]
[1754455317415,0.66,162.36,162.35,6.15944081]
[1754455318135,4.78320344,162.36,162.35,6.15944081]
[1754455318322,4.12320344,162.37,162.35,6.15944081]
[1754455318506,0.66,162.38,162.35,14.70725911]
[1754455318726,4.13420638,162.37,162.36,43.0]
[1754455319251,4.82420638,162.37,162.36,49.1591525]
[1754455320367,4.82420638,162.37,162.36,43.0]
[1754455320561,0.69,162.37,162.35,49.15945649]
[1754455320855,4.80175565,162.36,162.35,43.0]
[1754455321048,4.80175565,162.36,162.34,43.0]
[1754455321223,8.5778183,162.37,162.34,43.0]
[1754455321224,0.66,162.35,162.34,49.15975274]
[1754455321424,4.80231971,162.35,162.34,6.15975274]
[1754455321925,4.14231971,162.35,162.34,6.15975274]
[1754455322659,4.14231971,162.35,162.34,14.70757104]
[1754455322867,0.69,162.37,162.34,14.70757104]
[1754455323071,4.80303614,162.36,162.34,14.70757104]
[1754455323355,0.66,162.35,162.34,6.15975274]
[1754455323657,0.66,162.35,162.34,95.22975274]
[1754455324016,0.75,162.37,162.34,103.77757104]
[1754455324220,4.86403482,162.36,162.34,103.77757104]
[1754455324447,0.03,162.37,162.34,103.77757104]
[1754455324627,0.03,162.37,162.35,43.02]
[1754455324628,4.14403482,162.36,162.35,43.02]
[1754455325673,0.75,162.37,162.35,43.02]
[1754455326030,0.03,162.37,162.36,9.2678183]
[1754455326238,4.89484145,162.37,162.35,77.5678183]
[1754455326446,0.75,162.37,162.35,77.5678183]
[1754455326756,0.75,162.37,162.36,6.1591525]
[1754455326936,4.89484145,162.37,162.36,6.1591525]
[1754455328538,0.03,162.37,162.36,14.7069708]
[1754455328743,0.03,162.37,162.36,15.4269708]
[1754455333251,0.03,162.37,162.36,14.7069708]
[1754455334033,0.03,162.37,162.36,15.4269708]
[1754455335362,0.03,162.37,162.36,104.4969708]
[1754455335748,0.03,162.37,162.36,103.7769708]
[1754455336271,0.03,162.37,162.36,95.2291525]
[1754455336454,0.03,162.37,162.36,103.7769708]
[1754455336643,0.03,162.37,162.36,104.4969708]
[1754455336837,0.03,162.37,162.36,95.2291525]
[1754455337141,0.03,162.37,162.36,103.7769708]
[1754455337961,0.03,162.37,162.36,95.2291525]
[1754455337962,0.75,162.37,162.36,95.2291525]
[1754455338266,4.89696252,162.37,162.36,89.07]
[1754455340572,4.89696252,162.37,162.36,89.13]
[1754455341268,4.89696252,162.37,162.36,95.2891525]
[1754455341474,4.89696252,162.37,162.36,89.13]
[1754455341971,4.89696252,162.37,162.36,95.2891525]
[1754455343567,4.17696252,162.37,162.36,95.2891525]
[1754455346558,4.89696252,162.37,162.36,89.13]
[1754455348657,4.89696252,162.37,162.36,95.2891525]
[1754455348864,4.17696252,162.37,162.36,95.2891525]
[1754455350057,4.17696252,162.37,162.36,96.0091525]
[1754455350264,4.17696252,162.37,162.36,104.5569708]
[1754455350473,4.17696252,162.37,162.36,95.2891525]
[1754455350977,0.03,162.37,162.36,95.2891525]
[1754455351176,4.17956576,162.37,162.36,95.2891525]
[1754455352778,4.17956576,162.37,162.36,103.8369708]
[1754455352986,4.17956576,162.37,162.36,104.5569708]
[1754455353550,0.03,162.37,162.36,104.5569708]
[1754455357575,0.72,162.37,162.36,95.2891525]
[1754455357784,0.72,162.37,162.36,138.2491525]
[1754455358169,4.8701507,162.37,162.36,138.2491525]
[1754455359695,4.8701507,162.37,162.36,132.09]
[1754455360384,4.8701507,162.37,162.36,89.13]
[1754455360977,4.8701507,162.37,162.36,95.2891525]
[1754455362598,4.8701507,162.37,162.36,89.13]
[1754455362979,4.1801507,162.37,162.36,95.2891525]
[1754455363284,0.03,162.37,162.36,104.4869708]
[1754455367774,0.03,162.37,162.36,106.9525298]
[1754455367981,0.03,162.37,162.36,95.9391525]
[1754455368182,0.03,162.37,162.36,104.4869708]
[1754455369201,0.72,162.37,162.36,132.09]
[1754455369401,4.8698111,162.37,162.36,89.13]
[1754455375402,4.8698111,162.37,162.36,95.2891525]
[1754455376905,4.8698111,162.37,162.36,89.13]
[1754455377411,13.4176294,162.37,162.36,89.13]
[1754455379206,4.8698111,162.37,162.36,89.13]
[1754455379388,4.1798111,162.37,162.36,89.13]
[1754455379801,4.1798111,162.37,162.36,95.2891525]
[1754455380017,4.1798111,162.37,162.36,95.9391525]
[1754455380295,4.1798111,162.37,162.36,95.2891525]
[1754455380493,4.1798111,162.37,162.36,89.13]
[1754455380695,4.8698111,162.37,162.36,89.13]
[1754455381418,4.1798111,162.37,162.36,89.13]
[1754455382724,4.8698111,162.37,162.36,89.13]
[1754455384720,4.1798111,162.37,162.36,89.13]
[1754455385104,4.8698111,162.37,162.36,89.13]
[1754455385624,4.1798111,162.37,162.36,89.13]
[1754455386923,4.1798111,162.37,162.36,96.0091525]
[1754455389124,4.1798111,162.37,162.36,95.2891525]
[1754455391929,4.17881461,162.37,162.36,95.2891525]
[1754455395128,4.17881461,162.37,162.36,96.0091525]
[1754455395502,4.17881461,162.37,162.36,95.2891525]
[1754455396799,4.17881461,162.37,162.36,96.0091525]
[1754455398634,0.03,162.37,162.36,104.5569708]
[1754455398835,0.03,162.37,162.36,146.27910162]
[1754455399127,0.1,162.39,162.38,26.0]
[1754455399307,0.1,162.39,162.38,77.5078183]
[1754455399508,0.1,162.39,162.38,78.2278183]
[1754455400525,1e-08,162.39,162.38,84.38621219]
[1754455400753,1e-08,162.39,162.38,99.49242776]
[1754455401030,1e-08,162.39,162.38,101.95768376]
[1754455403306,1e-08,162.39,162.38,191.02768376]
[1754455406321,1e-08,162.39,162.38,175.90146819]
[1754455407244,1e-08,162.39,162.38,173.43621219]
[1754455411637,1e-08,162.39,162.38,175.90146719]
[1754455413323,0.69000001,162.39,162.38,91.535255]
[1754455413527,9.23781831,162.39,162.38,2.465255]
[1754455413839,9.23781831,162.39,162.36,0.06]
[1754455414029,9.1978183,162.38,162.36,0.06]
[1754455414542,0.65,162.37,162.36,0.06]
[1754455415043,0.65,162.37,162.36,6.2191525]
[1754455415416,0.65,162.37,162.36,0.06]
[1754455419644,4.78722141,162.37,162.36,0.06]
[1754455419848,0.65,162.37,162.36,0.06]
[1754455422167,0.65,162.38,162.36,0.06]
[1754455422338,0.65,162.37,162.36,0.06]
[1754455423750,4.78750894,162.37,162.36,0.06]
[1754455424351,13.33532724,162.37,162.36,0.06]
[1754455426725,6.15814751,162.39,162.36,0.06]
[1754455426726,4.13750894,162.38,162.36,0.06]
[1754455427040,4.13722086,162.38,162.36,0.06]
[1754455427653,0.65000001,162.39,162.36,9.3078183]
[1754455428047,0.65000001,162.39,162.37,6.15877317]
[1754455428276,1e-08,162.39,162.37,15.40659147]
[1754455428442,1e-08,162.39,162.38,8.5478183]
[1754455428635,4.13713847,162.39,162.38,9.2478183]
[1754455429654,1e-08,162.39,162.38,8.5478183]
[1754455429839,4.13713847,162.39,162.38,8.5478183]
[1754455430040,1e-08,162.39,162.38,97.6478183]
[1754455430332,4.13713847,162.39,162.38,97.6478183]
[1754455430539,1e-08,162.39,162.38,89.1]
[1754455430841,4.78713847,162.39,162.38,89.1]
[1754455431154,0.65000001,162.39,162.38,89.1]
[1754455431341,4.78713847,162.39,162.38,89.1]
[1754455431744,13.33495677,162.39,162.38,89.1]
[1754455435850,13.33495677,162.39,162.36,89.16]
[1754455436053,13.33495676,162.38,162.36,89.16]
[1754455436251,9.1978183,162.38,162.36,89.16]
[1754455437172,0.65,162.38,162.36,89.16]
[1754455439675,8.54781831,162.39,162.36,89.16]
[1754455439870,4.13763418,162.38,162.37,0.7]
[1754455440745,4.13763418,162.38,162.36,89.16]
[1754455440953,8.54781831,162.39,162.36,89.86]
[1754455441146,4.13747664,162.38,162.36,89.86]
[1754455441553,4.13747664,162.38,162.36,96.01914857]
[1754455441776,1e-08,162.39,162.37,6.85853478]
[1754455441987,1e-08,162.39,162.38,0.7]
[1754455442158,4.13710966,162.39,162.38,0.7]
[1754455442474,4.13710966,162.39,162.37,6.85853478]
[1754455442682,4.13710965,162.38,162.37,6.85853478]
[1754455443082,4.13710965,162.38,162.37,0.7]
[1754455444576,4.13710965,162.38,162.36,138.2590392]
[1754455444790,9.22781831,162.39,162.36,138.2590392]
[1754455445083,4.13746251,162.38,162.36,96.0090392]
[1754455445275,0.68000001,162.39,162.36,96.0090392]
[1754455445477,4.13747516,162.38,162.36,96.0090392]
[1754455445796,1e-08,162.39,162.36,103.8668575]
[1754455446081,4.13747516,162.38,162.37,0.69]
[1754455447395,4.13747516,162.38,162.37,0.75]
[1754455447697,4.13747516,162.38,162.37,89.85]
[1754455448350,4.13747516,162.38,162.37,89.16]
[1754455448774,4.13747516,162.38,162.37,95.31877317]
[1754455449395,4.13747516,162.38,162.37,96.00877317]
[1754455450904,4.13747516,162.38,162.37,138.94877317]
[1754455453566,4.14483863,162.38,162.37,138.94877317]
[1754455454392,4.14483863,162.38,162.37,138.25877317]
[1754455454691,4.14483863,162.38,162.37,138.94877317]
[1754455455968,4.14483863,162.38,162.37,147.49659147]
[1754455456293,1e-08,162.39,162.37,173.49659147]
[1754455456592,1e-08,162.39,162.37,121.31877317]
[1754455456769,4.1486424,162.38,162.37,104.55659147]
[1754455457090,4.1486424,162.38,162.37,147.49659147]
[1754455457288,4.15088856,162.38,162.37,147.49659147]
[1754455458906,4.15088856,162.38,162.37,138.25877317]
[1754455459072,4.15088856,162.38,162.37,146.80659147]
[1754455459273,4.15088856,162.38,162.37,138.25877317]
[1754455459688,4.15088856,162.38,162.37,147.49659147]
[1754455465883,4.15088856,162.38,162.37,146.80659147]
[1754455466177,4.15088856,162.38,162.37,138.25877317]
[1754455467386,4.83088856,162.38,162.37,132.1]
[1754455467697,13.37870686,162.38,162.37,0.06]
[1754455468573,4.83088856,162.38,162.37,0.06]
[1754455469476,4.15088856,162.38,162.37,0.06]
[1754455470297,4.83088856,162.38,162.37,0.06]
[1754455470674,4.15088856,162.38,162.37,0.06]
[1754455470880,4.15088856,162.38,162.37,6.21877317]
[1754455472287,4.83088856,162.38,162.37,6.21877317]
[1754455472600,4.83088856,162.38,162.37,0.06]
[1754455472809,13.37870686,162.38,162.37,0.06]
[1754455473120,18.55975515,162.38,162.37,0.06]
[1754455474405,9.33193685,162.38,162.37,0.06]
[1754455474705,4.15088856,162.38,162.37,0.06]
[1754455475003,4.84088856,162.38,162.37,0.06]
[1754455479602,4.15088856,162.38,162.37,0.06]
[1754455481401,4.15088856,162.38,162.37,0.73]
[1754455482899,4.15088856,162.38,162.37,0.06]
[1754455483782,4.15088856,162.38,162.37,9.2778183]
[1754455485004,4.15088856,162.38,162.37,0.73]
[1754455485500,4.15088856,162.38,162.37,0.06]
[1754455486007,4.15088856,162.38,162.37,0.73]
[1754455486301,4.15088856,162.38,162.37,6.88877317]
[1754455489195,4.15088856,162.38,162.37,95.98877317]
[1754455489611,4.15088856,162.38,162.37,104.53659147]
[1754455490306,4.15088856,162.38,162.37,95.98877317]
[1754455490605,4.15088856,162.38,162.37,95.31877317]
[1754455491488,4.15088856,162.38,162.37,101.45367343]
[1754455492280,4.15088856,162.38,162.37,144.39367343]
[1754455493213,4.15088856,162.38,162.37,143.72367343]
[1754455494378,4.15088856,162.38,162.37,100.78367343]
[1754455500324,4.15088856,162.38,162.37,0.06]
[1754455500510,15.48683711,162.38,162.37,0.06]
[1754455500702,10.30578882,162.38,162.37,0.06]
[1754455501013,16.46418271,162.38,162.36,0.06]
[1754455501317,15.49633251,162.37,162.36,0.06]
[1754455503489,21.65510568,162.37,162.36,0.06]
[1754455505902,31.57077756,162.37,162.36,0.06]
[1754455506314,31.57077756,162.37,162.35,0.06]
[1754455506315,5.46490026,162.36,162.35,0.06]
[1754455506512,10.27578882,162.36,162.35,0.06]
[1754455506715,13.35869056,162.36,162.35,0.06]
[1754455507927,19.51784306,162.36,162.35,0.06]
[1754455508738,41.4640288,162.36,162.35,0.06]
[1754455508919,15.10621557,162.35,162.34,0.06]
[1754455509128,104.31692712,162.35,162.34,0.06]
[1754455509635,78.31692712,162.35,162.34,0.06]
[1754455509808,77.564438,162.35,162.34,0.06]
[1754455510014,49.65401757,162.32,162.31,0.06]
[1754455510232,101.9263385,162.32,162.31,0.06]
[1754455510640,78.93232093,162.32,162.31,0.06]
[1754455510858,4.15088856,162.32,162.31,0.06]
[1754455511041,47.09088856,162.32,162.31,0.76]
[1754455512813,4.15088856,162.32,162.31,0.76]
[1754455513013,4.15088856,162.32,162.31,6.92104984]
[1754455513315,42.94,162.35,162.31,6.92104984]
[1754455513536,4.13873733,162.34,162.32,9.247802]
[1754455513832,4.13873733,162.34,162.33,0.7]
[1754455514243,4.13873733,162.34,162.33,6.86029076]
[1754455515019,13.34653933,162.34,162.31,0.06]